bitfinex-derivatives/quotes_BTCF0:USTF0_20240925
["timestamp","ask_amount","ask_price","bid_price","bid_amount"]
[1727261651780,0.17856,63642.0,63641.0,0.078561]
[1727261651978,0.17856,63642.0,63641.0,0.25703206]
[1727261652167,0.1,63642.0,63641.0,0.25703206]
[1727261652375,0.102,63645.0,63644.0,0.078558]
[1727261652583,0.101,63645.0,63644.0,0.078558]
[1727261652780,0.1,63645.0,63644.0,0.078558]
[1727261654069,0.101,63645.0,63644.0,0.089558]
[1727261654782,0.102,63645.0,63644.0,0.100558]
[1727261655178,0.002,63645.0,63644.0,0.100558]
[1727261655886,0.002,63645.0,63644.0,0.200558]
[1727261657175,0.002,63645.0,63644.0,0.100558]
[1727261662587,0.180556,63645.0,63644.0,0.100558]
[1727261664689,0.180556,63645.0,63644.0,0.022]
[1727261667788,0.259112,63645.0,63644.0,0.022]
[1727261669984,0.078565,63638.0,63635.0,0.06252877]
[1727261670187,0.1,63636.0,63633.0,0.06252877]
[1727261670391,0.078571,63633.0,63632.0,0.06259901]
[1727261670579,0.078571,63633.0,63632.0,0.23997588]
[1727261670779,0.078571,63633.0,63632.0,0.06259901]
[1727261671082,0.17857,63634.0,63632.0,0.16981226]
[1727261671280,0.17857,63634.0,63633.0,0.011]
[1727261671689,0.17857,63634.0,63633.0,0.18081226]
[1727261671890,0.17857,63634.0,63633.0,0.16981226]
[1727261672090,0.20257295,63634.0,63633.0,0.16981226]
[1727261672286,0.076571,63633.0,63632.0,0.18087844]
[1727261672493,0.076571,63633.0,63632.0,0.011]
[1727261672996,0.076571,63633.0,63632.0,0.17722239]
[1727261673196,0.074571,63633.0,63632.0,0.17722239]
[1727261673600,0.074571,63633.0,63632.0,0.25579439]
[1727261673795,0.074571,63633.0,63632.0,0.35579439]
[1727261674097,0.074571,63633.0,63632.0,0.24479439]
[1727261674398,0.074571,63633.0,63632.0,0.60559439]
[1727261674696,0.075571,63633.0,63632.0,0.60559439]
[1727261674899,0.076571,63633.0,63632.0,0.60559439]
[1727261676499,0.076571,63633.0,63632.0,0.52702239]
[1727261678901,0.176571,63633.0,63632.0,0.52702239]
[1727261679600,0.176571,63633.0,63632.0,0.16622239]
[1727261681705,0.176571,63633.0,63632.0,0.24479439]
[1727261682106,0.176571,63633.0,63632.0,0.078572]
[1727261682604,0.176571,63633.0,63632.0,0.25580045]
[1727261684405,0.076571,63633.0,63632.0,0.25580045]
[1727261691009,0.13934163,63633.0,63632.0,0.25580045]
[1727261691306,0.076571,63633.0,63632.0,0.25580045]
[1727261693308,0.13934163,63633.0,63632.0,0.25580045]
[1727261694309,0.13934163,63633.0,63632.0,0.30276873]
[1727261694509,0.13934163,63633.0,63632.0,0.25580045]
[1727261695903,0.155142,63633.0,63632.0,0.17722845]
[1727261696099,0.076571,63633.0,63632.0,0.17722845]
[1727261696318,0.157148,63632.0,63631.0,0.1813913]
[1727261696611,0.078574,63632.0,63631.0,0.078574]
[1727261696816,0.078574,63632.0,63631.0,0.24438878]
[1727261697316,0.078574,63632.0,63631.0,0.30701315]
[1727261697917,0.079574,63632.0,63631.0,0.30701315]
[1727261698110,0.001,63632.0,63631.0,0.24438878]
[1727261698314,0.06284139,63637.0,63631.0,0.72643488]
[1727261698518,0.0037,63639.0,63638.0,0.078565]
[1727261698813,0.01892832,63639.0,63638.0,0.27269563]
[1727261699016,0.07856,63642.0,63638.0,0.37511778]
[1727261699213,0.07856,63642.0,63641.0,0.07834768]
[1727261699409,0.07856,63642.0,63641.0,0.17851748]
[1727261699602,0.10257676,63642.0,63641.0,0.35950463]
[1727261700204,0.10257676,63642.0,63641.0,0.43806563]
[1727261700518,0.02401676,63642.0,63641.0,0.43806563]
[1727261700815,0.078556,63645.0,63641.0,0.6418828]
[1727261701119,0.078556,63645.0,63644.0,0.06267537]
[1727261701309,0.078556,63645.0,63644.0,0.062665]
[1727261701920,0.078556,63645.0,63641.0,0.44201319]
[1727261702105,0.078556,63645.0,63644.0,0.078558]
[1727261702416,0.079556,63645.0,63644.0,0.14319415]
[1727261702622,0.080556,63645.0,63644.0,0.14319415]
[1727261703620,0.002,63645.0,63644.0,0.31289847]
[1727261703920,0.002,63645.0,63644.0,0.25026232]
[1727261704421,0.002,63645.0,63644.0,0.42843926]
[1727261705318,0.002,63645.0,63644.0,0.25026232]
[1727261706011,0.02746762,63645.0,63644.0,0.25026232]
[1727261706213,0.0961177,63645.0,63644.0,0.25026232]
[1727261706509,0.002,63645.0,63644.0,0.25026232]
[1727261706714,0.12158532,63645.0,63644.0,0.25026232]
[1727261707406,0.02746762,63645.0,63644.0,0.25026232]
[1727261708210,0.09609224,63645.0,63644.0,0.25026232]
[1727261708608,0.12155986,63645.0,63644.0,0.25026232]
[1727261711019,0.12155986,63645.0,63644.0,0.61106232]
[1727261711718,0.02746762,63645.0,63644.0,0.68962032]
[1727261714028,0.002,63645.0,63644.0,0.71427314]
[1727261714829,0.002,63645.0,63644.0,0.35347314]
[1727261715026,0.002,63645.0,63644.0,0.71427314]
[1727261716027,0.002,63645.0,63644.0,0.35347314]
[1727261716332,0.002,63645.0,63644.0,0.71427314]
[1727261720934,0.02746714,63645.0,63644.0,0.71427314]
[1727261723033,0.02746714,63645.0,63644.0,0.61106232]
[1727261723621,0.04389031,63645.0,63644.0,0.61106232]
[1727261723931,0.06935745,63645.0,63644.0,0.61106232]
[1727261724129,0.06935745,63645.0,63644.0,0.71106232]
[1727261726121,0.06935745,63645.0,63644.0,0.35026232]
[1727261729133,0.002,63645.0,63644.0,0.5441071]
[1727261729332,0.002,63645.0,63644.0,0.45014627]
[1727261730431,0.002,63645.0,63644.0,0.5441071]
[1727261730637,0.002,63645.0,63644.0,0.45014627]
[1727261730941,0.002,63645.0,63644.0,0.5441071]
[1727261731331,0.002,63645.0,63644.0,0.88950427]
[1727261731646,0.0319,63660.0,63648.0,0.078552]
[1727261731647,0.078543,63656.0,63648.0,0.078552]
[1727261731838,0.0037,63654.0,63653.0,0.078546]
[1727261732044,0.0315,63657.0,63653.0,0.19988395]
[1727261732243,0.0315,63657.0,63654.0,0.35903485]
[1727261732434,0.0315,63657.0,63654.0,0.07831924]
[1727261732837,0.0315,63657.0,63655.0,0.18083166]
[1727261733146,0.0315,63657.0,63656.0,0.078543]
[1727261733333,0.05928477,63657.0,63656.0,0.078543]
[1727261733534,0.05928477,63657.0,63656.0,0.25700796]
[1727261735042,0.06528477,63657.0,63656.0,0.35700796]
[1727261735247,0.06928477,63657.0,63656.0,0.35700796]
[1727261735547,0.06328477,63657.0,63656.0,0.35700796]
[1727261735842,0.06728477,63657.0,63656.0,0.35700796]
[1727261737953,0.06228477,63657.0,63656.0,0.35700796]
[1727261738257,0.06728477,63657.0,63656.0,0.35700796]
[1727261739247,0.06728477,63657.0,63656.0,0.71780796]
[1727261739458,0.14582677,63657.0,63656.0,0.61780796]
[1727261739962,0.24582677,63657.0,63656.0,0.68041958]
[1727261740258,0.24582677,63657.0,63656.0,0.61780796]
[1727261742764,1.59936477,63657.0,63655.0,0.06260979]
[1727261743073,0.0324,63656.0,63655.0,0.06260979]
[1727261743370,0.110943,63656.0,63655.0,0.04696916]
[1727261743569,0.582223,63656.0,63655.0,0.04696916]
[1727261744061,0.582223,63656.0,63651.0,0.078549]
[1727261744062,0.078548,63652.0,63651.0,0.078549]
[1727261744567,0.19246738,63652.0,63651.0,0.078549]
[1727261745259,0.19246738,63652.0,63651.0,0.080549]
[1727261745868,0.19246738,63652.0,63651.0,0.079549]
[1727261746964,0.19346738,63652.0,63651.0,0.079549]
[1727261747868,0.19346738,63652.0,63651.0,0.25532626]
[1727261750976,0.079548,63652.0,63651.0,0.25532626]
[1727261753681,0.001,63652.0,63651.0,0.25532626]
[1727261754677,0.179548,63652.0,63651.0,0.23945392]
[1727261755671,0.179548,63652.0,63651.0,0.17677726]
[1727261756174,0.179548,63652.0,63651.0,0.25532626]
[1727261757978,0.20501546,63652.0,63651.0,0.25532626]
[1727261759267,0.20501546,63652.0,63651.0,0.17677726]
[1727261765284,0.10501546,63652.0,63651.0,0.17677726]
[1727261766078,0.10501546,63652.0,63651.0,0.23946453]
[1727261766079,0.079548,63652.0,63651.0,0.23946453]
[1727261766283,0.079548,63652.0,63651.0,0.31801353]
[1727261767287,0.079548,63652.0,63651.0,0.25532626]
[1727261772688,0.22090113,63652.0,63651.0,0.17677726]
[1727261773093,0.18356413,63652.0,63651.0,0.17677726]
[1727261780299,0.54436413,63652.0,63651.0,0.17677726]
[1727261781092,0.58174438,63652.0,63651.0,0.17677726]
[1727261782104,0.22094438,63652.0,63651.0,0.17677726]
[1727261782294,0.518896,63652.0,63651.0,0.17677726]
[1727261787604,0.618896,63652.0,63651.0,0.17677726]
[1727261789006,0.258096,63652.0,63651.0,0.17677726]
[1727261789305,0.518896,63652.0,63651.0,0.17677726]
[1727261789501,0.518896,63652.0,63651.0,0.25522099]
[1727261789899,0.581757,63652.0,63651.0,0.17677726]
[1727261792903,0.220957,63652.0,63651.0,0.17677726]
[1727261793715,0.581757,63652.0,63651.0,0.17677726]
[1727261794107,0.220957,63652.0,63651.0,0.17677726]
[1727261794303,0.581757,63652.0,63651.0,0.17677726]
[1727261795012,0.220957,63652.0,63651.0,0.17677726]
[1727261795213,0.581757,63652.0,63651.0,0.17677726]
[1727261796203,0.5443643,63652.0,63651.0,0.17677726]
[1727261797008,0.54436427,63652.0,63651.0,0.17677726]
[1727261801714,0.18356427,63652.0,63651.0,0.17677726]
[1727261801915,0.54436427,63652.0,63651.0,0.17677726]
[1727261802610,0.18356427,63652.0,63651.0,0.17677726]
[1727261802811,0.54436427,63652.0,63651.0,0.17677726]
[1727261803212,0.22095926,63652.0,63651.0,0.17677726]
[1727261803602,0.58175926,63652.0,63651.0,0.17677726]
[1727261804118,0.22095926,63652.0,63651.0,0.17677726]
[1727261804302,0.58175926,63652.0,63651.0,0.17677726]
[1727261804716,0.58175926,63652.0,63651.0,0.25532626]
[1727261806319,0.518896,63652.0,63651.0,0.43468479]
[1727261806515,0.440348,63652.0,63651.0,0.43468479]
[1727261806717,0.440348,63652.0,63651.0,0.43467982]
[1727261807019,0.440348,63652.0,63651.0,0.35623609]
[1727261807221,0.440348,63652.0,63651.0,0.4346946]
[1727261808508,0.079548,63652.0,63651.0,0.4346946]
[1727261810322,0.079548,63652.0,63651.0,0.25532626]
[1727261811115,0.079548,63652.0,63651.0,0.33378477]
[1727261811323,0.14594695,63652.0,63651.0,0.25532626]
[1727261815115,0.14600761,63652.0,63651.0,0.25532626]
[1727261818312,0.079548,63652.0,63651.0,0.43463316]
[1727261818521,0.14240413,63652.0,63651.0,0.25532626]
[1727261823433,0.079548,63652.0,63651.0,0.43458346]
[1727261823736,0.079548,63652.0,63651.0,0.33380253]
[1727261824327,0.179548,63652.0,63651.0,0.33380253]
[1727261824631,0.179548,63652.0,63651.0,0.25525353]
[1727261824922,0.24240413,63652.0,63651.0,0.25525353]
[1727261825518,0.24240413,63652.0,63651.0,0.17677726]
[1727261825715,0.32095213,63652.0,63651.0,0.25532626]
[1727261826025,0.24240413,63652.0,63651.0,0.25532626]
[1727261826228,0.24240413,63652.0,63651.0,0.33380253]
[1727261826632,0.24240413,63652.0,63651.0,0.25532626]
[1727261827131,1.329416,63652.0,63651.0,0.06379094]
[1727261827328,1.76878616,63652.0,63651.0,0.001]
[1727261827631,1.76878044,63652.0,63651.0,0.001]
[1727261827833,1.690216,63652.0,63651.0,0.001]
[1727261828326,1.76878044,63652.0,63651.0,0.001]
[1727261828628,1.690216,63652.0,63651.0,0.001]
[1727261830130,1.690216,63652.0,63651.0,0.06379094]
[1727261830827,0.618896,63652.0,63651.0,0.06379094]
[1727261831424,0.6817263,63652.0,63651.0,0.06379094]
[1727261832232,0.618896,63652.0,63651.0,0.001]
[1727261832431,0.618896,63652.0,63651.0,0.06379094]
[1727261832731,0.68172488,63652.0,63651.0,0.06379094]
[1727261832922,0.618896,63652.0,63651.0,0.001]
[1727261833320,0.64436449,63652.0,63651.0,0.001]
[1727261841338,0.68171756,63652.0,63651.0,0.001]
[1727261841839,0.32091756,63652.0,63651.0,0.06379094]
[1727261842038,0.32091756,63652.0,63651.0,0.001]
[1727261842631,0.32091756,63652.0,63651.0,0.06379094]
[1727261843033,0.32091756,63652.0,63651.0,0.001]
[1727261843228,0.258096,63652.0,63651.0,0.001]
[1727261844030,0.32091977,63652.0,63651.0,0.001]
[1727261844432,0.32091977,63652.0,63651.0,0.06379094]
[1727261844732,0.258096,63652.0,63651.0,0.001]
[1727261847044,0.158096,63652.0,63651.0,0.001]
[1727261847246,0.258096,63652.0,63651.0,0.001]
[1727261847931,0.079548,63652.0,63651.0,0.079549]
[1727261848134,0.14237429,63652.0,63651.0,0.079549]
[1727261848434,0.10501583,63652.0,63651.0,0.12661013]
[1727261851544,0.10501583,63652.0,63651.0,0.079549]
[1727261851936,0.10501583,63652.0,63651.0,0.12661013]
[1727261853550,0.19924818,63652.0,63651.0,0.079549]
[1727261854641,0.10501583,63652.0,63651.0,0.079549]
[1727261856450,0.079548,63652.0,63651.0,0.079549]
[1727261856644,0.14139124,63652.0,63651.0,0.079549]
[1727261856942,0.14239124,63652.0,63651.0,0.079549]
[1727261857144,0.24239124,63652.0,63651.0,0.078549]
[1727261857341,0.24239124,63652.0,63651.0,0.079549]
[1727261857541,0.24839124,63652.0,63651.0,0.079549]
[1727261857747,0.25339124,63652.0,63651.0,0.078549]
[1727261858545,0.25439124,63652.0,63651.0,0.078549]
[1727261859547,0.25539124,63652.0,63651.0,0.078549]
[1727261861542,0.192548,63652.0,63651.0,0.078549]
[1727261862343,0.271096,63652.0,63651.0,0.078549]
[1727261863553,0.38476897,63652.0,63651.0,0.078549]
[1727261863846,0.28476897,63652.0,63651.0,0.078549]
[1727261864254,0.28576897,63652.0,63651.0,0.078549]
[1727261864448,0.40330675,63652.0,63651.0,0.078549]
[1727261864749,0.28676897,63652.0,63651.0,0.078549]
[1727261864958,0.41230675,63652.0,63651.0,0.078549]
[1727261865157,0.28676897,63652.0,63651.0,0.078549]
[1727261865355,0.41230675,63652.0,63651.0,0.078549]
[1727261866855,0.41330675,63652.0,63651.0,0.078549]
[1727261867055,0.27976897,63652.0,63651.0,0.078549]
[1727261867250,0.29076897,63652.0,63651.0,0.078549]
[1727261867454,0.29065796,63652.0,63651.0,0.078549]
[1727261869651,0.21210996,63652.0,63651.0,0.078549]
[1727261871665,0.098548,63652.0,63651.0,0.078549]
[1727261872255,0.16140279,63652.0,63651.0,0.078549]
[1727261873054,0.098548,63652.0,63651.0,0.078549]
[1727261877767,0.16141051,63652.0,63651.0,0.15702527]
[1727261877957,0.16141051,63652.0,63651.0,0.078549]
[1727261878263,0.098548,63652.0,63651.0,0.078549]
[1727261878559,0.20854204,63652.0,63651.0,0.078549]
[1727261878763,0.27496953,63652.0,63651.0,0.078549]
[1727261878950,0.16497549,63652.0,63651.0,0.078549]
[1727261879350,0.27496953,63652.0,63651.0,0.078549]
[1727261880259,0.57327292,63652.0,63651.0,0.078549]
[1727261880566,0.52577549,63652.0,63651.0,0.078549]
[1727261880766,0.57325171,63652.0,63651.0,0.078549]
[1727261880962,0.69878949,63652.0,63651.0,0.078549]
[1727261881760,0.62024149,63652.0,63651.0,0.078549]
[1727261881959,0.49470371,63652.0,63651.0,0.078549]
[1727261882158,0.57325171,63652.0,63651.0,0.078549]
[1727261885059,0.48481551,63652.0,63651.0,0.078549]
[1727261885257,0.57308171,63652.0,63651.0,0.078549]
[1727261885570,0.69861949,63652.0,63651.0,0.078549]
[1727261885764,0.57308171,63652.0,63651.0,0.078549]
[1727261886368,0.69861949,63652.0,63651.0,0.078549]
[1727261886670,0.459348,63652.0,63651.0,0.2580707]
[1727261886969,0.52213342,63652.0,63651.0,0.078549]
[1727261887170,0.459348,63652.0,63651.0,0.078549]
[1727261887466,0.52212838,63652.0,63651.0,0.15702527]
[1727261887675,0.459348,63652.0,63651.0,0.25802769]
[1727261888170,0.52212838,63652.0,63651.0,0.078549]
[1727261888470,0.52212704,63652.0,63651.0,0.078549]
[1727261889262,0.459348,63652.0,63651.0,0.078549]
[1727261889462,0.52211814,63652.0,63651.0,0.078549]
[1727261889764,0.52211814,63652.0,63650.0,0.07847627]
[1727261889765,0.078549,63651.0,63650.0,0.07847627]
[1727261889966,0.157098,63651.0,63650.0,0.07855]
[1727261890468,0.257098,63651.0,63650.0,0.07855]
[1727261891178,0.157102,63649.0,63648.0,0.07847627]
[1727261891463,0.157102,63649.0,63647.0,0.15703027]
[1727261891464,0.078553,63648.0,63647.0,0.15703027]
[1727261891871,0.078553,63648.0,63647.0,0.43495853]
[1727261892273,0.257106,63648.0,63647.0,0.43495853]
[1727261893175,0.262106,63648.0,63647.0,0.43495853]
[1727261893475,0.269106,63648.0,63647.0,0.43495853]
[1727261894565,0.269106,63648.0,63647.0,0.3337289]
[1727261894877,0.29807959,63648.0,63647.0,0.3337289]
[1727261899673,0.29807959,63648.0,63647.0,0.25525263]
[1727261899979,0.29807959,63648.0,63647.0,0.3337289]
[1727261901671,0.32354885,63648.0,63647.0,0.25525263]
[1727261903281,0.32354885,63648.0,63642.0,0.06284074]
[1727261903282,0.52724285,63648.0,63642.0,0.04713056]
[1727261903481,0.078563,63640.0,63639.0,0.04713056]
[1727261903786,0.07842111,63643.0,63642.0,0.07856]
[1727261904091,0.15697911,63644.0,63643.0,0.078559]
[1727261904279,0.15697911,63644.0,63643.0,0.19008376]
[1727261904587,0.15697911,63644.0,63643.0,0.142959]
[1727261905172,0.078558,63644.0,63643.0,0.19008376]
[1727261905372,0.078558,63644.0,63643.0,0.142959]
[1727261905573,0.078558,63644.0,63643.0,0.19008376]
[1727261905770,0.078558,63644.0,63643.0,0.142959]
[1727261906376,0.081558,63644.0,63643.0,0.142959]
[1727261906579,0.082558,63644.0,63643.0,0.142959]
[1727261908585,0.082558,63644.0,63643.0,0.24405901]
[1727261917891,0.082558,63644.0,63643.0,0.142959]
[1727261918095,0.082558,63644.0,63643.0,0.24408915]
[1727261918891,0.082558,63644.0,63643.0,0.24409289]
[1727261923791,0.20809578,63644.0,63643.0,0.142959]
[1727261924192,0.28085754,63644.0,63643.0,0.142959]
[1727261924400,0.32159017,63644.0,63643.0,0.142959]
[1727261930700,0.082558,63644.0,63643.0,0.24413353]
[1727261938415,0.082558,63644.0,63643.0,0.24415334]
[1727261938708,0.10802729,63644.0,63643.0,0.142959]
[1727261945812,0.082558,63644.0,63643.0,0.33812936]
[1727261946514,0.082558,63644.0,63643.0,0.142959]
[1727261946716,0.082558,63644.0,63643.0,0.24413934]
[1727261949820,0.082558,63644.0,63643.0,0.33812847]
[1727261950023,0.004,63644.0,63643.0,0.41668747]
[1727261950216,0.03267359,63648.0,63647.0,0.078554]
[1727261950413,0.03267359,63648.0,63647.0,0.17973434]
[1727261950414,0.02897359,63648.0,63647.0,0.17973434]
[1727261950722,0.0037,63653.0,63652.0,0.078548]
[1727261950922,0.1413184,63655.0,63652.0,0.10118034]
[1727261951223,0.078544,63655.0,63652.0,0.07858625]
[1727261952220,0.078544,63655.0,63654.0,0.078545]
[1727261952918,0.10682599,63655.0,63654.0,0.078545]
[1727261953525,0.11782599,63655.0,63654.0,0.078545]
[1727261953826,0.19826841,63655.0,63654.0,0.079545]
[1727261954021,0.20026841,63655.0,63654.0,0.079545]
[1727261955224,0.15929232,63655.0,63654.0,0.079545]
[1727261956425,0.08074832,63655.0,63654.0,0.079545]
[1727261960728,0.06574832,63655.0,63654.0,0.078545]
[1727261960925,0.04028199,63655.0,63654.0,0.078545]
[1727261961125,0.012,63655.0,63654.0,0.25971666]
[1727261961325,0.011,63655.0,63654.0,0.25971666]
[1727261961526,0.01,63655.0,63654.0,0.25971666]
[1727261963129,0.002,63655.0,63654.0,0.25971666]
[1727261963434,0.006,63655.0,63654.0,0.25971666]
[1727261964223,0.006,63655.0,63654.0,0.89966026]
[1727261964428,0.006,63655.0,63654.0,0.72051666]
[1727261968026,0.006,63655.0,63654.0,0.87764791]
[1727261968533,0.006,63655.0,63654.0,0.89955767]
[1727261968922,0.09995996,63655.0,63654.0,0.79906166]
[1727261969122,0.03146312,63655.0,63654.0,0.79906166]
[1727261969323,0.03146312,63655.0,63654.0,0.87760666]
[1727261970133,0.08430788,63655.0,63654.0,0.90559507]
[1727261972831,0.006,63655.0,63654.0,1.50559507]
[1727261973128,0.006,63655.0,63654.0,0.90559507]
[1727261975925,0.0037,63658.0,63657.0,0.157084]
[1727261976129,0.03189211,63661.0,63657.0,0.27878312]
[1727261976338,0.0037,63664.0,63663.0,0.078534]
[1727261976544,0.078529,63667.0,63666.0,0.07853]
[1727261976836,0.02859799,63667.0,63666.0,0.07853]
[1727261977037,0.078528,63668.0,63666.0,0.07853]
[1727261977235,0.078529,63667.0,63666.0,0.07853]
[1727261977727,0.092529,63667.0,63666.0,0.07853]
[1727261978240,0.092529,63667.0,63666.0,0.12553757]
[1727261978536,0.092529,63667.0,63666.0,0.07853]
[1727261979036,0.106529,63667.0,63666.0,0.07953]
[1727261979240,0.106529,63667.0,63666.0,0.12653757]
[1727261981354,0.106529,63667.0,63666.0,0.04800757]
[1727261981355,0.206529,63667.0,63666.0,0.04800757]
[1727261981531,0.206529,63667.0,63666.0,0.12653757]
[1727261983240,0.206529,63667.0,63666.0,0.12656472]
[1727261983545,0.206529,63667.0,63666.0,0.07953]
[1727261987536,0.285058,63667.0,63666.0,0.001]
[1727261987730,0.315758,63667.0,63666.0,0.04805086]
[1727261988036,0.37837826,63667.0,63666.0,0.001]
[1727261988434,0.315758,63667.0,63666.0,0.001]
[1727261988628,0.37846152,63667.0,63666.0,0.001]
[1727261989035,0.315758,63667.0,63666.0,0.001]
[1727261990335,0.315758,63667.0,63666.0,0.04805086]
[1727261990935,0.79120326,63667.0,63666.0,0.001]
[1727261991327,0.91674104,63667.0,63666.0,0.001]
[1727261991838,0.4850209,63667.0,63666.0,0.001]
[1727261992040,0.98717236,63667.0,63666.0,0.001]
[1727261993336,0.8458209,63667.0,63666.0,0.001]
[1727261994437,0.7151209,63667.0,63666.0,0.001]
[1727261994945,0.85628071,63667.0,63666.0,0.001]
[1727261995135,0.7151209,63667.0,63666.0,0.001]
[1727261998343,0.7151209,63667.0,63666.0,0.07953]
[1727261998543,0.22117426,63667.0,63666.0,0.07953]
[1727261999134,0.106529,63667.0,63666.0,0.07953]
[1727262000546,0.028,63667.0,63666.0,0.07953]
[1727262000849,0.028,63667.0,63666.0,0.32813917]
[1727262001050,0.028,63667.0,63666.0,0.42842138]
[1727262001434,0.0037,63670.0,63666.0,1.26060543]
[1727262001736,0.0037,63673.0,63672.0,0.078523]
[1727262001936,0.06276401,63676.0,63675.0,0.078519]
[1727262002144,0.078516,63679.0,63675.0,0.078519]
[1727262002145,0.06276401,63677.0,63676.0,0.078518]
[1727262002343,0.06276401,63677.0,63676.0,0.25457483]
[1727262002546,0.02868067,63679.0,63676.0,0.078518]
[1727262002740,0.06276401,63678.0,63677.0,0.04706927]
[1727262002934,0.1,63677.0,63675.0,0.04706927]
[1727262003138,0.24124599,63677.0,63676.0,0.04706927]
[1727262003335,0.31976299,63677.0,63676.0,0.04706927]
[1727262003540,0.078518,63676.0,63673.0,0.06275826]
[1727262003742,0.007,63670.0,63668.0,0.04706316]
[1727262003945,0.078528,63668.0,63666.0,0.04806316]
[1727262004253,0.517858,63667.0,63666.0,0.001]
[1727262004449,0.07853,63666.0,63665.0,0.04706316]
[1727262004649,0.17853,63666.0,63665.0,0.04706316]
[1727262006041,0.078534,63663.0,63661.0,0.12559916]
[1727262006246,0.1,63663.0,63661.0,0.12559916]
[1727262006447,0.178534,63663.0,63662.0,0.22791407]
[1727262007342,0.182534,63663.0,63662.0,0.22791407]
[1727262007856,0.178534,63663.0,63662.0,0.22791407]
[1727262008251,0.1,63663.0,63662.0,0.22791407]
[1727262009950,0.1,63663.0,63662.0,0.18085091]
[1727262010153,0.105,63663.0,63662.0,0.18085091]
[1727262010352,0.105,63663.0,63660.0,0.06275826]
[1727262010353,0.105,63663.0,63661.0,0.1812043]
[1727262010555,0.06270262,63662.0,63661.0,0.1812043]
[1727262010750,0.06270262,63662.0,63658.0,0.06275826]
[1727262010951,0.1,63659.0,63658.0,0.06275826]
[1727262011154,0.1,63659.0,63658.0,0.06275977]
[1727262011365,0.1,63659.0,63658.0,0.24444108]
[1727262012156,0.102,63659.0,63658.0,0.24444108]
[1727262012557,0.002,63659.0,63658.0,0.18168131]
[1727262012762,0.002,63659.0,63658.0,0.2444413]
[1727262012965,0.002,63659.0,63658.0,0.06275999]
[1727262013256,0.002,63659.0,63657.0,0.06275999]
[1727262013754,0.002,63659.0,63658.0,0.23888079]
[1727262014060,0.002,63659.0,63657.0,0.04706997]
[1727262014061,0.03101215,63659.0,63657.0,0.04706997]
[1727262014252,0.003,63659.0,63658.0,0.04706997]
[1727262014453,0.001,63659.0,63658.0,0.1796317]
[1727262014757,0.001,63659.0,63657.0,0.04706997]
[1727262014758,0.002,63659.0,63657.0,0.04706997]
[1727262015062,0.002,63659.0,63658.0,0.21357827]
[1727262015251,0.001,63659.0,63658.0,0.21357827]
[1727262015561,0.003,63659.0,63658.0,0.14706997]
[1727262015752,0.06571046,63659.0,63658.0,0.2665083]
[1727262015953,0.003,63659.0,63658.0,0.2665083]
[1727262016260,0.002,63659.0,63658.0,0.2665083]
[1727262016855,0.004,63659.0,63658.0,0.2665083]
[1727262017450,0.003,63659.0,63658.0,0.2665083]
[1727262017651,0.003,63659.0,63658.0,0.32925946]
[1727262017856,0.003,63659.0,63658.0,0.2665083]
[1727262018355,0.003,63659.0,63658.0,0.29534544]
[1727262018555,0.001,63659.0,63658.0,0.29534544]
[1727262018748,0.0037,63664.0,63658.0,0.29534544]
[1727262018962,0.0037,63664.0,63663.0,0.50785921]
[1727262019161,0.06271046,63667.0,63663.0,0.50785921]
[1727262019366,0.06271046,63667.0,63666.0,0.1]
[1727262019658,0.06271046,63667.0,63666.0,0.26930527]
[1727262019862,0.06271046,63668.0,63666.0,0.26930527]
[1727262020062,0.06271046,63668.0,63667.0,0.1]
[1727262020254,0.06271046,63669.0,63667.0,0.1]
[1727262020454,0.473247,63672.0,63667.0,0.1]
[1727262020455,0.06271046,63671.0,63668.0,0.1]
[1727262020661,0.06271046,63671.0,63670.0,0.4608]
[1727262020865,0.06271046,63673.0,63670.0,0.4608]
[1727262021052,0.0037,63678.0,63672.0,0.1]
[1727262021251,0.02776822,63680.0,63677.0,0.04704271]
[1727262021467,0.0037,63681.0,63679.0,0.1]
[1727262021763,0.16271046,63684.0,63679.0,0.1]
[1727262022173,0.02812745,63684.0,63682.0,0.1]
[1727262022465,0.0353,63688.0,63683.0,0.04700487]
[1727262022657,0.0353,63688.0,63683.0,0.22226205]
[1727262023063,0.0353,63688.0,63683.0,0.17525718]
[1727262023372,0.009,63684.0,63683.0,0.17525718]
[1727262023870,0.07193245,63688.0,63683.0,0.17625718]
[1727262024262,0.17193245,63688.0,63683.0,0.17625718]
[1727262024860,0.006,63684.0,63683.0,0.17625718]
[1727262025170,0.015,63684.0,63683.0,0.17625718]
[1727262026059,0.009,63684.0,63683.0,0.17625718]
[1727262026269,0.009,63684.0,63683.0,0.17725718]
[1727262026670,0.04433245,63688.0,63683.0,0.17725718]
[1727262026867,0.04433245,63688.0,63686.0,0.1]
[1727262027065,0.04063245,63688.0,63686.0,0.1]
[1727262027266,0.03363245,63688.0,63686.0,0.1]
[1727262027870,0.03463245,63688.0,63686.0,0.1]
[1727262028071,0.03463245,63688.0,63687.0,0.17565054]
[1727262028670,0.04063245,63688.0,63687.0,0.17565054]
[1727262029272,0.16731673,63688.0,63687.0,0.04996769]
[1727262029462,0.05908568,63688.0,63687.0,0.05096769]
[1727262029662,0.21893022,63688.0,63687.0,0.05096769]
[1727262029970,0.31893022,63688.0,63687.0,0.05096769]
[1727262030170,0.31893022,63688.0,63687.0,0.05196769]
[1727262030667,0.67973022,63688.0,63687.0,0.002]
[1727262030868,0.85201032,63688.0,63687.0,0.002]
[1727262031464,0.83611995,63688.0,63687.0,0.002]
[1727262032264,0.67973022,63688.0,63687.0,0.002]
[1727262034376,0.71213022,63688.0,63687.0,0.002]
[1727262035564,0.70769285,63688.0,63687.0,0.002]
[1727262035773,0.34689285,63688.0,63687.0,0.002]
[1727262035973,0.70769285,63688.0,63687.0,0.002]
[1727262036172,0.53483245,63688.0,63687.0,0.002]
[1727262045980,0.71202627,63688.0,63687.0,0.002]
[1727262046477,0.60255388,63688.0,63687.0,0.002]
[1727262048980,0.57015388,63688.0,63687.0,0.002]
[1727262050589,1.57349388,63688.0,63678.0,0.0074]